Cogmind - Beta 16 @@@ ROGUE MODE // 2026.01.26 @ 21:57:34 Player: Bity Result: Destroyed by CH-H87(R) with Subdweller Beam Cannon Performance ------------- Evolutions (0) 0 Regions Visited (2) 400 Robots Destroyed (16) 80 Value Destroyed (341) 341 Prototype IDs (1) 20 Alien Tech Used (0) 0 Bonus (-208) -208 TOTAL SCORE: 633 Bonus ------- Follower Combat Kills 88 Friendly Fire -296 Cogmind --------- Core Integrity 0/250 Matter 290/300 Energy 248/250 System Corruption 0% Temperature Cool (9) Movement Rolling (110) Ox2 Location -10/Subcaves Parts ------- > --- POWER (1) -------- Ion Engine > --- PROPULSION (2) --- Wheel Wheel > --- UTILITY (2) ------ High-capacity Storage Unit V3-11A's Pendant > --- WEAPON (2) ------- Riot Gun Makeshift Spear > --- INVENTORY (20) --- Subdweller Power Source Subdweller Power Source Improved Treads Improved Treads Wheel Flightbrick Light Humpback Humpback Machine Analyzer Makeshift Light Armor Plating Subdweller Machine Gun Subdweller Machine Gun Plasma Cutter Maul Scrap Shield Fragment (44) Peak State ------------ > --- POWER ------------ Ion Engine > --- PROPULSION ------- Wheel Wheel > --- UTILITY ---------- High-capacity Storage Unit V3-11A's Pendant > --- WEAPON ----------- Riot Gun Makeshift Spear > --- INVENTORY -------- Subdweller Power Source Subdweller Power Source Improved Treads Improved Treads Wheel Flightbrick Light Humpback Humpback Machine Analyzer Makeshift Light Armor Plating Subdweller Machine Gun Subdweller Machine Gun Plasma Cutter Maul Scrap Shield Fragment [Rating: 20] Favorites ----------- Power Light Ion Engine Engine Light Ion Engine Propulsion Wheel Treads Improved Treads Leg Aluminum Leg Wheel Wheel Utility High-capacity Storage Unit Device V3-11A's Pendant Storage High-capacity Storage Unit Weapon Medium Laser Energy Gun Medium Laser Ballistic Gun Subdweller Machine Gun Impact Weapon Maul Piercing Weapon Makeshift Spear Build | -11 -10 -10 ------- Run | Yrd Mat Sub Slots Evolved . | . . . Power . | . . . Propulsion . | . . . Utility . | . . . Weapon . | . . . Parts Attached 11 | . 3 8 Power 1 | . . 1 Engine 1 | . . 1 Core . | . . . Reactor . | . . . Propulsion 4 | . 2 2 Treads 2 | . 2 . Leg . | . . . Wheel 2 | . . 2 Hover . | . . . Flight . | . . . Utility 2 | . 1 1 Device 1 | . . 1 Storage 1 | . 1 . Processor . | . . . Hackware . | . . . Protection . | . . . Artifact . | . . . Weapon 4 | . . 4 Energy Gun 1 | . . 1 Energy Cannon . | . . . Ballistic Gun 1 | . . 1 Ballistic Cannon . | . . . Launcher . | . . . Special Weapon . | . . . Impact Weapon 1 | . . 1 Slashing Weapon . | . . . Piercing Weapon 1 | . . 1 Special Melee Weapon . | . . . Unidentified Prototypes 1 | . . 1 Parts Lost 5 | . . 5 Power 1 | . . 1 Propulsion 2 | . . 2 Utility . | . . . Weapon 2 | . . 2 Highest Loss Streak 5 | . . 5 To Critical Strikes 1 | . . 1 Average Backups 8 | 6 8 9 Power 1 | 1 1 1 Propulsion 4 | 4 5 4 Utility 1 | . . 1 Weapon 1 | 1 1 1 Tool/Special . | . . . Unused Backups 20 | . 7 13 Power 2 | . . 2 Propulsion 8 | . 4 4 Utility 6 | . 2 4 Weapon 3 | . 1 2 Tool/Special 1 | . . 1 Average Slot Usage (%) 89 | . 85 90 Engine 12 | . 14 11 Treads 12 | . 27 7 Wheel 14 | . . 19 Device 6 | . . 8 Storage 14 | . 14 14 Energy Gun 13 | . 28 7 Ballistic Gun 7 | . . 9 Impact Weapon 5 | . . 7 Piercing Weapon 1 | . . 2 Peak Build Rating 20 | 6 10 20 Average Rating 11 | 6 8 12 On Entrance 7 | 6 6 9 Avg Prop Armor Cover (%) . | . . . Naked Turns . | . . . Heaviest Build 53 | 12 47 53 Greatest Support 46 | 20 46 46 Greatest Overweight (x) 4 | . 1 4 Average Overweight (x) 1 | . . 1 Largest Inventory Capacity 20 | 8 20 20 Average Capacity 17 | 8 11 20 Most Carried 20 | 8 9 20 Average Carried 10 | 6 8 12 Final Capacity 20 | 8 20 20 Final Carried 20 | 8 8 20 Class Distribution -------------------- 100% | Mutant Dominant Class ---------------- Mutant | -10/Materials Mutant | -10/Subcaves Resources | -11 -10 -10 ----------- Run | Yrd Mat Sub Matter Collected 305 | 200 17 88 Remotely . | . . . Salvage Created 705 | 120 415 170 Parts 27 | 4 18 5 Haulers Intercepted 1 | . 1 . Recyclers Shooed 2 | . 2 . Parts Field Recycled . | . . . Retrieved Matter . | . . . Parts Self-Destructed 20 | . . 20 Prevented . | . . . Parts Restored . | . . . Kills | -11 -10 -10 ------- Run | Yrd Mat Sub Combat Hostiles Destroyed 11 | . 8 3 Guns 11 | . 8 3 Classes Destroyed 6 | 2 3 1 Tunneler 1 | 1 . . Hauler 1 | . 1 . Recycler 2 | 1 1 . Swarmer 3 | . 3 . Grunt 5 | . 5 . Subdweller 4 | . . 4 Best Kill Streak 4 | 2 4 1 Combat Bots Only 3 | . 3 1 Max Kills in Single Turn 1 | 1 1 1 Gunslinging . | . . . Exploded . | . . . Melee . | . . . Uniques/NPCs Destroyed . | . . . Combat | -11 -10 -10 -------- Run | Yrd Mat Sub Hostile Shots Fired 76 | . 42 34 Missed 21 | . 11 10 Hits 55 | . 31 24 Projectile 55 | . 31 24 Critical Strikes 2 | . . 2 Damage Taken 854 | . 331 523 Core 251 | . 74 177 Absorbed by Shields . | . . . Core Remaining (%) 100 | 100 . . Volleys Fired 74 | 6 40 28 Largest 2 | 2 2 1 Hottest 100 | 100 100 50 Shots Fired 85 | 12 45 28 Gun 85 | 12 45 28 Cannon . | . . . Launcher . | . . . Special . | . . . Kinetic 4 | . . 4 Thermal 81 | 12 45 24 Explosive . | . . . Electromagnetic . | . . . Robot Hit Streak 11 | 3 8 11 Robot Miss Streak 4 | 1 4 1 Penetration Max . | . . . Secondary Targets . | . . . Shots Hit Robots 64 | 7 30 27 Core Hits 29 | 3 17 9 Critical Kills . | . . . Critical Parts Destroyed . | . . . Critical Strikes 8 | 1 3 4 Burn 7 | 1 3 3 Smash 1 | . . 1 Melee Attacks 13 | . . 13 Impact 8 | . . 8 Slashing . | . . . Piercing 5 | . . 5 Sneak Attacks 2 | . . 2 Combat Hostiles . | . . . Follow-up Attacks . | . . . Damage Inflicted 1058 | 87 404 567 Guns 826 | 87 401 338 Cannons . | . . . Explosions . | . . . Melee 229 | . . 229 Ramming 3 | . 3 . Kinetic 63 | . . 63 Thermal 763 | 87 401 275 Explosive . | . . . Electromagnetic . | . . . Impact 229 | . . 229 Slashing . | . . . Piercing . | . . . Highest Corruption . | . . . Average Corruption . | . . . Corruption Purged . | . . . Corruption Blocked . | . . . Overload Shots . | . . . Overflow Damage 25 | . . 25 Projectiles . | . . . Explosions . | . . . Melee 25 | . . 25 Knockbacks 1 | . . 1 Impact 1 | . . 1 Kinetic . | . . . Secondary . | . . . Self-Inflicted Damage . | . . . Shots . | . . . Rammed 1 | . 1 . Targets Rammed 1 | . 1 . Kicked . | . . . Crushed . | . . . Highest Temperature 246 | 196 246 . Average Temperature 93 | 93 93 . Received Heat Transfer 165 | . 138 27 Effects 1 | . 1 . Interference 1 | . 1 . Siege Activations . | . . . Martial Activations . | . . . Shielding Activations . | . . . Robots Disrupted . | . . . Combat Hostiles . | . . . Robots Corrupted . | . . . Combat Hostiles . | . . . Parts Fried 1 | . . 1 Impact Corruptions 2 | . . 2 Robots Melted . | . . . Combat Hostiles . | . . . Parts Melted 8 | 2 5 1 Heat Transferred 2775 | 333 1406 1036 Parts Sabotaged . | . . . Parts Stolen . | . . . Parts Stripped . | . . . Power Chain Reactions . | . . . Alert | -11 -10 -10 ------- Run | Yrd Mat Sub Maximum Alert Level . | . . . Low Security (%) 100 | 100 100 . Level 1 . | . . . Level 2 . | . . . Level 3 . | . . . Level 4 . | . . . Level 5 . | . . . High Security . | . . . Max Security . | . . . Peak Influence 119 | 10 119 . Initial . | . . . Average 53 | 2 56 . Influence Increases 433 | 10 239 184 Destroy 0b10 Robot/C 280 | . 160 120 Destroy 0b10 Robot/NC 20 | 10 10 . Destroy Leader 42 | . 42 . Allied During Kill 49 | . . 49 Successful Hack 26 | . 26 . Destroy Structure 1 | . 1 . Lose Combat Pursuer 15 | . . 15 Influence Decreases 273 | 10 204 59 Entered New Map 18 | . . 18 Time Decay 255 | 10 204 41 Squads Dispatched 3 | . 3 . Investigation 2 | . 2 . Extermination . | . . . Reinforcement 1 | . 1 . Assault . | . . . Garrison . | . . . Intercept . | . . . Searches Triggered . | . . . Construction Impeded . | . . . Haulers Reinforced . | . . . Active Scanning Responses . | . . . Cargo Convoy Interrupts . | . . . Stealth | -11 -10 -10 --------- Run | Yrd Mat Sub Distress Signals 2 | . 2 . Communications Jammed . | . . . Distress Signals . | . . . Times Spotted 20 | . 10 10 Peak Tracking Total 3 | . 3 3 Tactical Retreats 1 | . . 1 Traps | -11 -10 -10 ------- Run | Yrd Mat Sub Traps Triggered . | . . . Indirectly . | . . . Trap Hack Attempts . | . . . Triggered . | . . . Disarmed . | . . . Reprogrammed . | . . . Reused . | . . . Traps Extracted . | . . . Installed . | . . . Triggered . | . . . Machines | -11 -10 -10 ---------- Run | Yrd Mat Sub Machines Disabled . | . . . Max in Single Turn . | . . . Machines Repaired . | . . . Machines Dismantled . | . . . Machines Sabotaged . | . . . Overloaded Fab Kills . | . . . Hacking | -11 -10 -10 --------- Run | Yrd Mat Sub Machines Accessed 4 | . 4 . Terminals 3 | . 3 . Fabricators . | . . . Repair Stations . | . . . Recycling Units 1 | . 1 . Scanalyzers . | . . . Garrison Access . | . . . Total Hacks 8 | . 8 . Successful 2 | . 2 . Failed 6 | . 6 . Catastrophic 1 | . 1 . Database Lockouts . | . . . Manual 6 | . 6 . Terminals 5 | . 5 . Fabricators . | . . . Repair Stations . | . . . Recycling Units 3 | . 3 . Scanalyzers . | . . . Garrison Access . | . . . Terminal Hacks . | . . . Fabricator Hacks . | . . . Repair Station Hacks . | . . . Recycling Unit Hacks . | . . . Scanalyzer . | . . . Garrison Access Hacks . | . . . Unauthorized Hacks 2 | . 2 . Terminals 2 | . 2 . Botnet 2 | . 2 . Fabricators . | . . . Repair Stations . | . . . Recycling Units . | . . . Scanalyzers . | . . . Garrison Access . | . . . Data Cores Recovered . | . . . Used . | . . . Hacking Detections 4 | . 4 . Full Trace Events 1 | . 1 . Feedback Events . | . . . Feedback Blocked . | . . . Robot Schematics Acquired . | . . . Robots Built . | . . . Authchips . | . . . Time . | . . . Total Robot Build Rating . | . . . Part Schematics Acquired . | . . . Parts Built . | . . . Authchips . | . . . Time . | . . . Total Part Build Rating . | . . . Part Studies Acquired . | . . . Parts Repaired . | . . . Time . | . . . Parts Recycled . | . . . Recycled Matter . | . . . Retrieved Matter . | . . . Retrieved Components . | . . . Parts Scanalyzed . | . . . Part Schematics Acquired . | . . . Parts Damaged . | . . . Bothacking | -11 -10 -10 ------------ Run | Yrd Mat Sub Used RIF Installer . | . . . Robots Hacked . | . . . Non-combat . | . . . Combat . | . . . Robot Hacks Applied . | . . . Relay Couplers Released . | . . . Fabnet Peak Effective % . | . . . Robots Rewired . | . . . Allies Hacked . | . . . Hacks Repelled . | . . . Allies | -11 -10 -10 -------- Run | Yrd Mat Sub Total Allies 9 | . . 9 Largest Group 7 | . . 7 Highest-Rated Group 131 | . . 131 Highest-Rated Ally 22 | . . 22 Total Orders . | . . . Ally Attacks 31 | . . 31 Total Damage 368 | . . 368 Kills 9 | . . 9 Allies Corrupted . | . . . Allies Melted . | . . . Intel | -11 -10 -10 ------- Run | Yrd Mat Sub Active Infowar (turns) . | . . . Robot Analysis Total . | . . . Derelict Logs Recovered 1 | . . 1 Drone Launches . | . . . Drone Recoveries . | . . . Exploration | -11 -10 -10 ------------- Run | Yrd Mat Sub Turns Passed 2102 | 39 555 1508 Spaces Moved 1253 | 16 248 989 Core . | . . . Treads 390 | . 244 146 Legs 20 | 16 4 . Wheels 843 | . . 843 Hover . | . . . Flight . | . . . Fastest Speed 110 | 120 120 110 Average Speed 140 | 120 179 130 Slowest Speed 240 | 120 240 240 Overloaded Moves . | . . . Propulsion Burnouts . | . . . Robots Hopped . | . . . Potential Cave-ins . | . . . Cave-ins Triggered . | . . . Exploration Rate (%) 39 | 2 52 65 Regions Visited 2 Branch Regions 1 Pre-discovered Areas 1 | . . 1 Known Exits Taken . | . . . Unknown Exits Taken 2 | 1 1 . Scrap Searched 2 | . . 2 Spaces Dug 1 | . . 1 Terrain Destroyed 1 | . . 1 Melee 1 | . . 1 Projectile . | . . . AOE . | . . . Terrain Rammed . | . . . Walls Destroyed . | . . . Machines Disabled . | . . . Actions | -11 -10 -10 --------- Run | Yrd Mat Sub Total 1489 | 23 315 1151 Wait 116 | . 14 102 Move 1251 | 15 247 989 Hop . | . . . Pick Up 17 | 2 4 11 Fast Attach 3 | . 1 2 Attach 4 | . . 4 Detach 1 | . 1 . Swap 4 | . 2 2 Drop 5 | . 5 . Fire 74 | 6 40 28 Melee 13 | . . 13 Ram . | . . . Kick . | . . . Crush 1 | . 1 . Escape Stasis . | . . . Rewire . | . . . Trap . | . . . Miscellaneous . | . . . Route ------- -11/Scrapyard -10/Materials (discovered 4 exits: [*Mat] / [*Min x2] / [*Sub]) -10/Subcaves (discovered 3 exits: [*Mat] / [*Rec] / [*Scr]) History --------- Turn | Location | Event 7 | -11/Scrapyard | Discovered new exit (range 2) 40 | -11/Scrapyard | Entered Materials 41 | -10/Materials | Met a group of wandering Federalists 80 | -10/Materials | Discovered new exit (range 12) 169 | -10/Materials | Discovered new exit (range 14) 311 | -10/Materials | Build established: Mutant 501 | -10/Materials | Discovered new exit (range 14) 585 | -10/Materials | Discovered new exit (range 6) 595 | -10/Materials | Entered Subcaves 596 | -10/Subcaves | Continued accompanying wandering Federalists (4) 596 | -10/Subcaves | Approached by a straggling Scientist 602 | -10/Subcaves | Shifting Twisted Machinery released Sub. Machine Gun 608 | -10/Subcaves | Learned Materials security intel 643 | -10/Subcaves | Learned location of Zion (-7) 643 | -10/Subcaves | Met a Zionite searching for "candidates" 645 | -10/Subcaves | Shifting Twisted Machinery released Sub. Shrapnel Launcher 970 | -10/Subcaves | Core integrity fell below 50% 997 | -10/Subcaves | Core integrity fell below 20% 1031 | -10/Subcaves | Lost 5 parts (1p2n2w) 1131 | -10/Subcaves | Visited triangular shrine 1137 | -10/Subcaves | Found Prototype Device 1137 | -10/Subcaves | Identified V3-11A's Pendant 1142 | -10/Subcaves | Befriended Subdweller 1162 | -10/Subcaves | Befriended Subdweller 1192 | -10/Subcaves | Befriended Subdweller 1317 | -10/Subcaves | Befriended Subdweller 1461 | -10/Subcaves | A Subdweller sparked back to life 1462 | -10/Subcaves | Befriended Subdweller 1467 | -10/Subcaves | Befriended Subdweller 1484 | -10/Subcaves | Found Prototype Flight Unit 1700 | -10/Subcaves | Discovered new exit (range 9) 1792 | -10/Subcaves | Shifting Twisted Machinery released Sub. Machine Gun 1804 | -10/Subcaves | Shifting Twisted Machinery released Mak. Spear 1827 | -10/Subcaves | Shifting Twisted Machinery released Mak. Light Armor Plating 1831 | -10/Subcaves | Shifting Twisted Machinery released Mak. Light Armor Plating 1872 | -10/Subcaves | Befriended Subdweller 1877 | -10/Subcaves | Befriended Subdweller 1992 | -10/Subcaves | Befriended Subdweller 2028 | -10/Subcaves | Discovered new exit (range 14) 2103 | -10/Subcaves | Destroyed by CH-H87(R) with Subdweller Beam Cannon Last Messages --------------- 02020_ Subatomizers dissect the Sub. Power Source. 02028_ EXIT=FOUND 02033_ Subatomizers dissect the Sub. Power Source. 02033_ Acquired 9 matter. 02034_ Acquired 3 matter. 02038_ Autobeam fries itself beyond repair. 02048_ Subatomizers dissect the Sub. Monowheel. 02075_ Searching scrap... 02075_ Found Flamer. 02075_ Found 56 Matter. 02080_ Searching scrap... 02080_ Found Sub. Machine Gun. 02080_ Found Riot Gun. 02080_ Found 36 Matter. 02086_ AU-ZWW(R) affixes Scrap Shield Fragment to Scrap Shield. 02088_ Acquired Riot Gun. Map ----- +----------------------------------------------------+ | ???????????????????????????????????????????? | | ???????????????????????????????????????????? | | ???????????????????????????????????????????? | | ???????????????????????????????????????????? | | ???????????????????????????????????????????? | | ???????????????????????????????????????????? | | ???????????????????????????????????????????? | | ???????????????????????????????????????????? | | ???????????????????????????????????????????? | | ???????????????????????????????????????????? | | ?????????????????? ????????????????????????? | | ?????????????????? ????????????????????????? | | ?????????????????? ????????????????????????? | | ?????????????????? #???????????????????????? | | ?????????????????? ???????#???????????????? | | ?????????????????? ?????? #???????????????? | | ?????????????????? ????? #???????????????? | | ?????????????????? #???? #???????????????? | | ?????????????????? ??? #???????????????? | | ?????????????????? ?? #????????????????? | | ?????????????????? ?? #?????????????????? | | ????????????????### #? ########??????????? | | ????????????????? ## R #??????????? | | ????????????????## R ??????????????? | | ????????????????# ??????????????????? | | ????????????????# @ #?????????????????????? | | ????????????????## ##?????????????????????? | | ????????????????## #?????????????????????? | | ????????????????# ####??##???#???????????? | | ???????????####?###R ### ### #???????????? | | ???????????#[%### RR # #???????##### | | ???????????#[ #%#" #??????#" " | | ???????????## &| #######??????# | | ???????????# "##" ##???????###### | | ???????????# ## #??????### % | | ???????????######## #?###### % | | ???????????????### ### % % | | ???????????????# ! #### % | | ???????????????# =% ## | | ???????????????# ### * ### ##" " | | ???????????????#### #?# #?# ###### | | ??????????????????## #### #### ####?? | | ??????????????????# ### ##?## ##? | | ??????????????????# " ""## #### ## | | ??????????????????## ## ##" | | ???????????????????### ## # | | ?????????????????????### " ## ## | | ??????????????????????# """"# ### ###### | | ??????????????????????# ##### #????# | | ??????????????????????# # #?#### #????# | +----------------------------------------------------+ Best States ------------- Heat Dissipation 25 Energy Generation 10 Energy Capacity 250 Matter Stores 300 Matter Capacity 300 Sight Range 16 Terrain Scan Density 10 Evasion (%) 45 Recoil Reduction 2 Item Schematics ----------------- None Robot Schematics ------------------ None Fabricated ------------ Nothing Repaired ---------- Nothing Studied --------- None Alien Tech Used ----------------- None Achievements -------------- None Challenges ------------ None Game ------ Seed AngularImprinterStatue Manual? 1 Play Time 00:14:44 Cumulative 82.7 hours Start 2026.01.26 @ 21:46:47 End 2026.01.26 @ 21:57:34 Sessions 1 Manual Loads 0 Difficulty Rogue Special Mode None Game No. 98 Rogue 98 Adventurer 0 Explorer 0 Win Type - Total 2 Types 2/0/0/0/0/0/0/0/0/0 Lore% 53 Gallery% 51 Achievement% 41 Wizard Run 0 Options --------- Layout 2 ASCII 0 Keyboard 1 Movement Numpad Keybinds 0 Fullscreen 2 Font 24/Smallcaps Map View 50x44 Zoom Use 0% Tactical HUD 1 Map Filters NONE Filters NONE Steam 1 RUN: 288e4015-ef81-4b13-9688-7e689753572b